bitfinex/quotes_ETHUSD_20250319
["timestamp","ask_amount","ask_price","bid_price","bid_amount"]
[1742385870328,6.136,2023.3,2023.0,4.94294]
[1742385870700,6.136,2023.3,2023.2,4.94266]
[1742385870902,3.0,2023.5,2023.3,4.94219]
[1742385871756,3.99032,2023.6,2023.5,4.94193]
[1742385871961,4.94123,2023.8,2023.4,4.942]
[1742385872238,5.4915,2023.7,2023.3,4.94233]
[1742385872446,4.94169,2023.6,2023.3,4.94233]
[1742385872739,5.73371,2023.6,2023.2,4.94254]
[1742385872935,5.73371,2023.6,2023.2,4.9425]
[1742385873135,5.73371,2023.6,2022.9,4.94337]
[1742385873136,5.13114667,2023.5,2022.9,4.94329]
[1742385873318,14.07817,2023.4,2023.0,4.94305]
[1742385873835,14.07817,2023.4,2022.9,4.94335]
[1742385874046,14.07817,2023.4,2023.0,4.94302]
[1742385874411,9.136,2023.4,2023.1,4.94288]
[1742385874613,9.136,2023.4,2023.1,9.88564]
[1742385874845,4.78232,2023.6,2023.4,4.94208]
[1742385875210,3.99032,2023.6,2023.4,4.94206]
[1742385875417,3.99032,2023.6,2023.5,4.94193]
[1742385875659,3.99032,2023.6,2023.4,4.94216]
[1742385875939,4.94209,2023.5,2023.1,5.931404]
[1742385876146,3.99032,2023.6,2023.2,4.94264]
[1742385876329,3.99032,2023.6,2023.4,4.94205]
[1742385876509,3.99032,2023.6,2023.3,4.9423]
[1742385876714,3.99032,2023.6,2023.5,4.94193]
[1742385876931,3.99032,2023.6,2023.4,9.88412]
[1742385877133,3.99032,2023.6,2023.5,4.94193]
[1742385877744,3.99032,2023.6,2023.5,6.40852417]
[1742385878559,0.7697,2023.9,2023.7,4.94135]
[1742385878726,17.085,2024.1,2023.9,4.94082]
[1742385879129,17.085,2024.1,2023.9,9.88167]
[1742385879436,17.085,2024.1,2023.9,4.94082]
[1742385879741,17.085,2024.1,2023.4,4.94214]
[1742385879944,22.02557,2024.1,2023.7,4.94136]
[1742385880249,22.02557,2024.1,2023.7,4.9413]
[1742385880444,23.219,2024.1,2023.8,4.94109]
[1742385880618,23.219,2024.1,2023.9,4.94092]
[1742385880950,23.219,2024.1,2024.0,4.94071]
[1742385881117,17.085,2024.1,2024.0,4.94071]
[1742385881313,20.085,2024.1,2023.4,0.7903]
[1742385881545,8.77404,2023.9,2023.6,4.94166]
[1742385881744,3.0,2023.9,2023.7,4.94134]
[1742385882541,3.0,2023.9,2023.7,4.94129]
[1742385882744,3.0,2023.9,2023.8,4.94119]
[1742385882948,17.085,2024.1,2024.0,4.94071]
[1742385883249,6.133,2024.2,2024.0,9.88142]
[1742385883815,4.78152,2024.3,2024.0,9.88142]
[1742385884122,4.78152,2024.3,2024.0,4.94071]
[1742385884460,7.94085,2024.0,2023.6,9.88308]
[1742385884662,3.0,2023.9,2023.7,4.9414]
[1742385884814,3.0,2024.0,2023.8,4.94119]
[1742385885184,7.94027,2024.2,2023.8,4.94119]
[1742385885333,10.33876367,2024.2,2023.8,4.94119]
[1742385885537,3.0,2024.0,2023.8,4.94119]
[1742385886134,4.78152,2024.3,2023.5,4.94193]
[1742385886331,4.78152,2024.3,2023.8,4.94111]
[1742385886332,0.7912,2024.3,2023.8,4.94111]
[1742385886543,3.0,2024.4,2024.2,4.94022]
[1742385886751,9.52067667,2024.5,2023.6,4.94166]
[1742385886947,4.58114667,2024.5,2024.2,4.94011]
[1742385887669,3.0,2024.4,2024.2,4.94011]
[1742385887971,7.93985,2024.4,2024.0,4.94063]
[1742385888142,3.0,2024.2,2023.9,4.9408]
[1742385888471,4.93976,2024.4,2024.0,4.94062]
[1742385888766,7.93976,2024.4,2024.0,9.88123]
[1742385888970,12.45338697,2024.5,2024.1,4.94037]
[1742385889268,3.0,2024.5,2024.2,4.94013]
[1742385889475,6.9375,2024.6,2024.3,4.93989]
[1742385889767,6.9375,2024.6,2023.9,0.7766]
[1742385889976,6.9375,2024.6,2024.3,9.87972]
[1742385890344,6.9375,2024.6,2024.4,4.93972]
[1742385890543,6.9375,2024.6,2024.4,9.87928]
[1742385890744,6.9375,2024.6,2024.4,4.93956]
[1742385891076,3.0,2024.7,2024.6,4.93924]
[1742385891262,3.99032,2024.8,2024.6,4.93924]
[1742385891472,3.99032,2024.8,2024.7,4.939]
[1742385891679,3.99032,2024.8,2024.6,4.93911]
[1742385891989,3.99032,2024.8,2024.6,9.87822]
[1742385892170,3.99032,2024.8,2024.6,4.93909]
[1742385892539,3.99032,2024.8,2024.4,5.76252]
[1742385892744,3.99032,2024.8,2024.5,4.93934]
[1742385892965,3.99032,2024.8,2024.5,4.9393]
[1742385893167,3.99032,2024.8,2024.5,9.87863]
[1742385893350,3.99032,2024.8,2024.6,4.93917]
[1742385895358,3.99032,2024.8,2024.5,4.93932]
[1742385895556,4.93918,2024.7,2024.2,4.94013]
[1742385895874,4.93918,2024.7,2023.9,4.94083]
[1742385895875,4.94012,2024.3,2023.9,4.94083]
[1742385896250,7.58114667,2024.2,2023.7,4.94144]
[1742385896450,7.58114667,2024.2,2023.5,4.94193]
[1742385896451,9.52192667,2024.0,2023.5,4.94193]
[1742385896661,4.94097,2023.9,2023.5,4.94185]
[1742385896856,10.30529667,2024.0,2023.5,4.94175]
[1742385897080,4.45130467,2024.2,2023.4,0.7865]
[1742385897081,8.35224667,2024.2,2023.4,0.7865]
[1742385897257,3.7711,2024.2,2023.9,4.94082]
[1742385897651,8.71141,2024.2,2023.8,4.94117]
[1742385898378,3.0,2024.2,2023.9,4.94078]
[1742385898567,5.7724,2023.9,2023.5,4.9417]
[1742385898776,5.7724,2023.9,2023.6,4.94168]
[1742385899174,0.8314,2023.9,2023.6,4.94168]
[1742385899683,4.58114667,2023.8,2023.3,4.94242]
[1742385899853,4.94156,2023.7,2023.4,4.94217]
[1742385900054,4.94155,2023.7,2023.3,4.94238]
[1742385900255,9.52282667,2023.6,2023.2,4.94263]
[1742385900555,6.58948967,2023.7,2023.3,9.88458]
[1742385900758,6.58948967,2023.7,2023.3,4.94224]
[1742385901008,3.0,2023.7,2023.4,4.94198]
[1742385901586,3.0,2023.7,2023.4,9.88398]
[1742385901809,6.125,2023.8,2023.5,4.94178]
[1742385902014,6.125,2023.8,2023.6,4.94158]
[1742385902207,11.0662,2023.8,2023.5,4.94178]
[1742385902522,11.0662,2023.8,2023.4,4.94216]
[1742385902688,3.0,2023.7,2023.4,4.94216]
[1742385902887,3.0,2023.7,2023.4,4.94197]
[1742385903085,3.0,2023.7,2023.5,4.94183]
[1742385903289,3.0,2023.7,2023.6,4.94168]
[1742385903686,3.0,2023.7,2023.5,4.94185]
[1742385903889,3.0,2023.7,2023.4,4.94212]
[1742385904088,4.94178,2023.6,2023.2,4.94248]
[1742385904720,13.91032262,2023.7,2023.3,4.94241]
[1742385905290,13.91032262,2023.7,2023.3,4.9423]
[1742385905502,8.96886262,2023.7,2023.3,4.94223]
[1742385905814,8.96886262,2023.7,2023.0,5.73984]
[1742385905815,3.0,2023.7,2023.5,4.94189]
[1742385906529,3.99032,2024.0,2023.5,0.8185]
[1742385906699,3.99032,2024.0,2023.6,4.94157]
[1742385906891,3.99032,2024.0,2023.7,4.94144]
[1742385907497,3.99032,2024.0,2023.4,4.94217]
[1742385907698,6.99032,2024.0,2023.9,4.94095]
[1742385908027,21.66314667,2024.3,2024.2,4.94022]
[1742385908028,17.082,2024.3,2024.2,4.94022]
[1742385908720,4.75602,2024.6,2024.3,4.93985]
[1742385909138,4.75602,2024.6,2024.4,4.93951]
[1742385909430,7.75602,2024.6,2024.5,4.93949]
[1742385909634,6.123,2024.7,2024.6,4.93924]
[1742385909947,3.8101,2024.8,2024.6,4.93924]
[1742385910094,3.8101,2024.8,2024.5,9.87886]
[1742385910438,8.74894,2024.8,2024.4,4.93957]
[1742385910642,0.8101,2024.8,2024.7,4.939]
[1742385910845,3.99032,2025.1,2025.0,4.93827]
[1742385911012,0.7851,2025.3,2025.1,4.93791]
[1742385911342,6.121,2025.4,2025.2,4.93763]
[1742385911544,17.8589,2025.5,2025.3,4.93739]
[1742385911840,17.8589,2025.5,2025.2,4.93765]
[1742385911997,3.0,2025.4,2025.2,4.93765]
[1742385912197,17.083,2025.5,2025.3,4.9374]
[1742385912413,17.083,2025.5,2025.2,4.93776]
[1742385912693,17.083,2025.5,2025.0,4.93827]
[1742385912893,17.083,2025.5,2025.3,4.9375]
[1742385913124,17.083,2025.5,2025.3,4.93737]
[1742385913455,17.083,2025.5,2025.4,4.93729]
[1742385914034,3.0,2025.7,2025.4,4.93729]
[1742385914351,3.0,2025.7,2025.3,4.93736]
[1742385914352,3.24339884,2025.7,2025.5,4.93702]
[1742385914548,8.92649,2025.9,2025.5,4.93689]
[1742385915152,8.92649,2025.9,2025.6,4.93668]
[1742385915153,3.99032,2025.9,2025.6,4.93668]
[1742385916326,3.99032,2025.9,2025.7,4.93655]
[1742385916521,3.99032,2025.9,2025.7,4.93645]
[1742385917255,17.08,2026.1,2025.9,4.93589]
[1742385917459,17.08,2026.1,2025.8,4.93614]
[1742385917622,17.08,2026.1,2025.9,4.93606]
[1742385917828,10.85842,2026.5,2026.2,4.93533]
[1742385918011,17.83045567,2026.5,2025.7,0.8052]
[1742385918213,12.89582567,2026.5,2026.1,4.93539]
[1742385918413,12.89582567,2026.5,2026.2,4.93529]
[1742385918813,17.83044567,2026.5,2026.1,4.93552]
[1742385919358,17.83044567,2026.5,2026.1,4.93549]
[1742385919554,17.83044567,2026.5,2026.1,9.87092]
[1742385919933,3.99032,2026.5,2026.3,4.93509]
[1742385920290,6.99032,2026.5,2026.4,4.93485]
[1742385920411,3.99032,2026.5,2026.4,4.93485]
[1742385921371,6.9073,2026.7,2026.5,4.93461]
[1742385921515,17.077,2026.8,2026.6,4.93434]
[1742385921710,17.077,2026.8,2026.6,4.93419]
[1742385922039,9.51454667,2027.0,2026.7,4.93412]
[1742385922241,3.0,2026.9,2026.7,4.93412]
[1742385922619,3.0,2026.9,2026.7,9.86824]
[1742385922816,3.0,2026.9,2026.8,4.93388]
[1742385923129,3.0,2026.9,2026.7,4.93412]
[1742385923346,3.0,2026.9,2026.7,4.93395]
[1742385923727,3.0,2026.9,2026.6,9.86855]
[1742385923915,3.0,2026.9,2026.6,9.86839]
[1742385924134,3.0,2026.9,2026.7,4.93412]
[1742385924635,3.0,2026.9,2026.7,4.93392]
[1742385924832,4.93952012,2027.1,2026.7,4.93392]
[1742385924833,0.00630012,2027.1,2026.7,0.572842]
[1742385925047,0.00630012,2027.1,2026.9,4.93358]
[1742385925288,0.00630012,2027.1,2027.0,4.93339]
[1742385926478,0.00630012,2027.1,2027.0,5.75849]
[1742385928067,4.93351,2027.0,2026.6,4.93427]
[1742385928248,10.30554679,2027.1,2026.7,4.93404]
[1742385928454,4.58114667,2026.9,2026.5,0.7655]
[1742385928671,4.58114667,2026.9,2026.6,4.93423]
[1742385929091,7.93343,2027.0,2026.6,4.93423]
[1742385929391,7.93343,2027.0,2026.5,4.93455]
[1742385929392,4.93388,2026.8,2026.5,4.93455]
[1742385929696,3.0,2027.0,2026.4,4.93485]
[1742385929898,3.0,2027.0,2026.7,9.86794]
[1742385930097,5.37234679,2027.1,2026.8,4.9338]
[1742385930396,0.79120012,2027.1,2026.8,4.93383]
[1742385930900,0.79120012,2027.1,2026.6,0.7689]
[1742385930901,4.58744679,2027.1,2026.6,0.7689]
[1742385931195,0.00630012,2027.1,2027.0,4.93339]
[1742385931401,0.00630012,2027.1,2027.0,5.920079]
[1742385931609,0.00630012,2027.1,2027.0,6.720079]
[1742385931759,0.00630012,2027.1,2027.0,5.73339]
[1742385933806,1.2e-07,2027.1,2027.0,5.78271191]
[1742385933972,1.2e-07,2027.1,2027.0,5.73339]
[1742385941702,1.2e-07,2027.1,2027.0,4.98271056]
[1742385941936,1.2e-07,2027.1,2027.0,4.93339]
[1742385944650,1.2e-07,2027.1,2026.9,4.93353]
[1742385944816,1.2e-07,2027.1,2026.8,4.93388]
[1742385945336,9.51442679,2027.1,2026.7,4.93411]
[1742385945645,9.51442679,2027.1,2026.7,9.86815]
[1742385945850,9.51442679,2027.1,2026.7,4.93404]
[1742385946039,9.51442679,2027.1,2026.7,9.86802]
[1742385946423,9.51442679,2027.1,2026.8,4.93384]
[1742385947147,9.51442679,2027.1,2026.7,4.93398]
[1742385947356,4.93416,2026.7,2026.1,1.77244471]
[1742385947567,4.93396,2026.8,2026.4,4.93476]
[1742385948060,4.93396,2026.8,2026.4,4.93481]
[1742385948273,4.93396,2026.8,2026.5,4.93461]
[1742385948417,6.8798,2027.0,2026.2,4.93534]
[1742385948752,1.2e-07,2027.1,2026.9,4.93364]
[1742385949126,1.2e-07,2027.1,2026.9,4.93348]
[1742385949327,1.2e-07,2027.1,2027.0,4.93339]
[1742385950855,1.2e-07,2027.1,2026.9,4.93348]
[1742385951022,5.76421,2027.0,2026.6,4.9343]
[1742385951227,5.76421,2027.0,2026.6,0.57956079]
[1742385951228,9.51481667,2026.9,2026.6,0.57956079]
[1742385951451,6.093,2026.9,2026.6,5.51392079]
[1742385951619,6.093,2026.9,2026.6,5.51393079]
[1742385951821,11.02667,2026.9,2026.6,0.57956079]
[1742385952757,11.02667,2026.9,2026.6,5.51383079]
[1742385952969,11.02667,2026.9,2026.6,4.93427]
[1742385953254,6.093,2026.9,2026.6,9.86848]
[1742385954066,6.093,2026.9,2026.6,9.86844]
[1742385954264,6.093,2026.9,2026.6,4.93421]
[1742385954432,6.093,2026.9,2026.6,9.86844]
[1742385954633,0.8307,2027.0,2026.8,4.93388]
[1742385954849,0.8307,2027.0,2026.9,4.93364]
[1742385955027,0.7807,2027.0,2026.9,4.93364]
[1742385955447,6.09200012,2027.1,2026.9,4.93364]
[1742385955448,1.2e-07,2027.1,2027.0,4.93339]
[1742385956366,1.2e-07,2027.1,2027.0,6.00626057]
[1742385957427,1.2e-07,2027.1,2027.0,4.93339]
[1742385959449,1.2e-07,2027.1,2026.9,4.93351]
[1742385959843,0.7555,2027.0,2026.8,5.29650596]
[1742385960058,0.7555,2027.0,2026.7,4.93411]
[1742385960254,4.58114667,2026.9,2026.7,4.93411]
[1742385960455,0.7555,2027.0,2026.8,4.93375]
[1742385960655,1.2e-07,2027.1,2027.0,4.93339]
[1742385969693,1.2e-07,2027.1,2027.0,14.85039334]
[1742385970253,1.2e-07,2027.1,2027.0,9.08839334]
[1742385972596,1.2e-07,2027.1,2027.0,9.27569]
[1742385972796,1.2e-07,2027.1,2027.0,14.48769]
[1742385973007,1.2e-07,2027.1,2027.0,25.15083667]
[1742385973207,1.2e-07,2027.1,2027.0,24.68926442]
[1742385973403,1.2e-07,2027.1,2027.0,18.92726442]
[1742385973609,1.2e-07,2027.1,2027.0,19.47726442]
[1742385974102,1.2e-07,2027.1,2027.0,16.47726442]
[1742385974304,1.2e-07,2027.1,2027.0,19.47726442]
[1742385975453,1.2e-07,2027.1,2027.0,24.68926442]
[1742385976525,1.2e-07,2027.1,2027.0,28.80883884]
[1742385976706,1.2e-07,2027.1,2027.0,24.68926442]
[1742385978205,1.2e-07,2027.1,2027.0,18.92426442]
[1742385978394,1.2e-07,2027.1,2027.0,15.92426442]
[1742385978794,1.2e-07,2027.1,2027.0,16.67376442]
[1742385979003,1.2e-07,2027.1,2027.0,17.22376442]
[1742385979241,1.2e-07,2027.1,2027.0,20.66748436]
[1742385979395,1.2e-07,2027.1,2027.0,20.11748436]
[1742385980013,1.2e-07,2027.1,2027.0,20.66748436]
[1742385980298,1.2e-07,2027.1,2027.0,25.87948436]
[1742385984618,1.2e-07,2027.1,2027.0,30.44277872]
[1742385984817,1.2e-07,2027.1,2027.0,25.87948436]
[1742385986245,1.2e-07,2027.1,2027.0,24.57498436]
[1742385986547,1.2e-07,2027.1,2027.0,11.79869]
[1742385986905,1.2e-07,2027.1,2027.0,12.34869]
[1742385987218,1.2e-07,2027.1,2027.0,14.79869]
[1742385988536,1.2e-07,2027.1,2027.0,7.93339]
[1742385988845,0.83200012,2027.1,2027.0,4.93339]
[1742385989205,0.83200012,2027.1,2026.9,4.93364]
[1742385989608,0.7836,2026.7,2026.3,4.93497]
[1742385989823,0.7836,2026.7,2026.2,4.93532]
[1742385990037,0.8189,2026.3,2025.7,0.7622]
[1742385990235,8.38219436,2026.3,2026.1,4.93556]
[1742385990419,0.8189,2026.3,2026.2,4.93534]
[1742385991046,0.8189,2026.3,2026.1,4.93547]
[1742385991351,0.8189,2026.3,2026.1,9.8709]
[1742385991523,0.8189,2026.3,2026.0,4.93577]
[1742385991946,0.8189,2026.3,2026.2,4.93534]
[1742385992447,0.8189,2026.3,2026.2,5.922431]
[1742385993056,0.07904951,2026.6,2026.5,4.93437]
[1742385994365,0.07904951,2026.6,2026.4,9.8695]
[1742385994649,0.07904951,2026.6,2026.5,4.93461]
[1742385996316,0.07904951,2026.6,2026.4,4.93467]
[1742385996551,0.8018,2026.5,2025.6,4.9368]
[1742385996753,0.8018,2026.5,2025.9,4.93585]
[1742385996754,0.8018,2026.2,2025.9,4.93585]
[1742385997052,0.8018,2026.1,2025.8,4.93621]
[1742385997210,0.8018,2026.1,2025.9,4.93602]
[1742385997416,0.8018,2026.1,2026.0,4.93583]
[1742385997752,0.8018,2026.1,2026.0,5.923015]
[1742385998555,0.8047,2026.5,2026.3,4.93496]
[1742385998759,0.8047,2026.5,2026.4,4.93485]
[1742386001267,0.8047,2026.5,2026.3,4.93496]
[1742386001675,0.8047,2026.5,2026.4,4.93485]
[1742386002174,4.56329436,2026.9,2026.7,4.9339]
[1742386002345,19.91325389,2027.1,2026.9,4.93355]
[1742386002740,19.91325389,2027.1,2026.7,9.86801]
[1742386002942,23.00478428,2027.1,2026.8,4.93382]
[1742386003680,27.93810428,2027.1,2026.7,4.93409]
[1742386003864,4.56329436,2026.9,2026.7,4.93409]
[1742386004176,9.86561812,2026.9,2026.3,4.93507]
[1742386004475,4.56329436,2026.5,2026.2,4.93528]
[1742386005264,4.93428,2026.7,2026.3,4.93508]
[1742386005265,0.7943,2026.4,2026.3,4.93508]
[1742386005496,4.93388,2026.8,2026.5,4.93438]
[1742386005497,0.7943,2026.8,2026.5,4.93438]
[1742386005634,3.7943,2026.8,2026.5,4.93438]
[1742386006042,4.56329436,2026.7,2026.4,4.93484]
[1742386006341,4.56329436,2026.7,2026.4,9.86954]
[1742386006541,4.56329436,2026.7,2026.4,4.9347]
[1742386006776,4.56329436,2026.7,2026.5,4.93458]
[1742386006982,0.7943,2026.8,2026.0,4.93568]
[1742386007166,0.7943,2026.6,2026.4,4.93473]
[1742386008090,0.7943,2026.6,2026.3,9.87007]
[1742386008262,0.7943,2026.6,2026.3,9.86998]
[1742386008462,0.7943,2026.6,2026.3,4.93498]
[1742386008660,0.7943,2026.6,2026.2,4.93533]
[1742386008661,0.7943,2026.6,2026.2,9.87056]
[1742386008861,4.56329436,2026.5,2026.2,4.93526]
[1742386009057,0.7943,2026.4,2026.1,4.93542]
[1742386009588,0.7943,2026.4,2026.1,9.87083]
[1742386009784,0.7943,2026.4,2026.2,4.93532]
[1742386009986,0.7943,2026.4,2026.1,4.93552]
[1742386010283,4.56329436,2026.3,2026.0,4.9358]
[1742386010525,0.8154,2026.2,2025.9,4.93605]
[1742386010656,0.8154,2026.0,2025.7,4.93647]
[1742386011478,1.18162187,2026.0,2025.7,4.93647]
[1742386011679,1.18162187,2026.0,2025.6,4.9368]
[1742386011880,4.56329436,2025.9,2025.5,4.93693]
[1742386012192,4.56329436,2025.9,2025.6,4.93667]
[1742386012359,1.18162187,2026.0,2025.3,11.00252]
[1742386012688,0.8154,2026.0,2025.8,4.93617]
[1742386012887,11.92519,2026.4,2025.8,4.93617]
[1742386012888,0.8092,2026.3,2026.1,4.93544]
[1742386013055,0.8092,2026.1,2025.9,4.93595]
[1742386013256,0.8092,2026.1,2025.9,4.93603]
[1742386013672,0.8092,2026.1,2025.8,4.93625]
[1742386013880,0.8092,2026.1,2025.7,4.93632]
[1742386014189,0.8092,2026.1,2025.8,4.93619]
[1742386014418,0.8092,2026.1,2025.8,4.93623]
[1742386014982,0.8294,2025.9,2025.6,4.93669]
[1742386015183,0.8294,2025.9,2025.7,4.93653]
[1742386015413,0.8294,2025.9,2025.6,4.93678]
[1742386015612,0.8294,2025.9,2025.7,4.93647]
[1742386015817,0.8294,2025.9,2025.6,4.93668]
[1742386016122,0.8294,2025.9,2025.7,4.93651]
[1742386016279,0.8294,2025.9,2025.6,4.93678]
[1742386016483,0.8294,2025.9,2025.6,4.9367]
[1742386016683,0.8294,2025.9,2025.7,4.93644]
[1742386017622,10.32909436,2025.8,2025.4,4.93716]
[1742386017782,5.39269436,2025.8,2025.4,4.93713]
[1742386017988,5.39269436,2025.8,2025.5,4.93704]
[1742386018200,5.39269436,2025.8,2025.5,4.93702]
[1742386018201,0.8294,2025.8,2025.5,4.93702]
[1742386018521,10.32909436,2025.8,2025.3,4.93742]
[1742386018817,1.64505581,2025.7,2025.4,4.93719]
[1742386019020,5.39269436,2025.8,2025.5,4.93685]
[1742386019193,0.8294,2025.8,2025.6,4.93671]
[1742386019398,0.8294,2025.8,2025.7,4.93656]
[1742386020108,0.8294,2025.8,2025.6,4.93671]
[1742386020480,0.8294,2025.8,2025.6,9.87338]
[1742386020720,0.8294,2025.8,2025.7,4.93656]
[1742386021420,0.7792,2026.0,2025.9,4.93604]
[1742386021735,0.7792,2026.0,2025.8,4.93624]
[1742386022400,0.7792,2026.0,2025.7,9.87293]
[1742386022725,0.7792,2026.0,2025.8,4.93627]
[1742386023522,11.94928333,2026.0,2025.4,4.93729]
[1742386023708,4.56329436,2025.8,2025.4,4.93727]
[1742386024026,1.67091897,2026.0,2025.2,4.93776]
[1742386024027,0.7825,2025.6,2025.2,4.93776]
[1742386024208,4.56329436,2025.5,2025.2,4.93776]
[1742386024523,0.7825,2025.6,2025.2,9.87535]
[1742386024689,2.30437744,2025.6,2025.2,9.87535]
[1742386024888,7.24118744,2025.6,2025.2,4.93759]
[1742386025090,2.30437744,2025.6,2025.2,9.87524]
[1742386025312,0.7825,2025.6,2025.5,4.93705]
[1742386025538,0.7825,2025.6,2025.4,4.93722]
[1742386026329,0.7825,2025.6,2025.5,4.93705]
[1742386027716,1.67091897,2026.0,2025.5,4.93705]
[1742386027918,0.815,2025.9,2025.7,4.9364]
[1742386028228,0.815,2025.9,2025.6,4.93673]
[1742386028419,5.37829436,2025.9,2025.6,4.93673]
[1742386029193,5.37829436,2025.9,2025.6,4.93665]
[1742386030034,7.12535269,2025.9,2025.5,4.93704]
[1742386030533,4.56329436,2025.7,2025.4,4.93726]
[1742386030830,0.7679,2025.5,2025.4,4.93729]
[1742386031293,0.7679,2025.7,2025.5,4.93683]
[1742386031497,0.7679,2025.7,2025.6,4.9368]
[1742386031696,0.7679,2025.7,2025.5,4.93683]
[1742386031988,0.7679,2025.7,2025.6,4.9368]
[1742386033095,1.331,2025.1,2024.1,4.9403]
[1742386033298,4.13275985,2024.8,2024.6,4.93905]
[1742386033533,0.7612,2024.7,2024.4,4.93973]
[1742386034038,4.13275985,2024.6,2024.4,4.93973]
[1742386034196,4.13275985,2024.6,2024.4,4.93972]
[1742386034537,4.13275985,2024.6,2024.5,4.93949]
[1742386034716,0.7612,2024.7,2024.6,4.93924]
[1742386035037,0.7909,2024.5,2024.0,4.94056]
[1742386035329,0.7909,2024.5,2023.9,0.98173662]
[1742386035330,0.7909,2024.5,2024.2,4.94013]
[1742386035500,5.37142033,2024.5,2024.2,4.94007]
[1742386035894,10.31100033,2024.5,2024.1,4.94034]
[1742386036094,5.37142033,2024.5,2024.3,4.93984]
[1742386036807,0.7909,2024.5,2024.3,4.93982]
[1742386037005,5.35172033,2024.7,2024.4,4.93957]
[1742386037709,5.35172033,2024.7,2024.5,4.93945]
[1742386037905,0.7712,2024.7,2024.6,4.93924]
[1742386038102,0.7815,2024.9,2024.8,4.93875]
[1742386038304,0.7815,2025.3,2024.9,4.93834]
[1742386038620,4.58052033,2025.2,2024.9,4.93839]
[1742386038822,4.58052033,2025.0,2024.8,4.93873]
[1742386039222,4.58052033,2025.0,2024.8,9.87731]
[1742386039426,4.58052033,2025.2,2025.0,4.93825]
[1742386039620,4.58052033,2025.2,2025.1,4.93802]
[1742386039821,0.7815,2025.3,2025.1,4.93802]
[1742386040026,0.7815,2025.3,2025.2,4.93778]
[1742386040221,10.63552033,2025.4,2025.3,4.93754]
[1742386040556,4.58052033,2025.4,2025.3,4.93754]
[1742386040703,0.7646,2025.5,2025.3,4.93736]
[1742386041135,4.58052033,2025.4,2025.3,4.93736]
[1742386042937,4.58052033,2025.4,2025.2,4.93768]
[1742386043134,4.58052033,2025.4,2025.1,4.93801]
[1742386043333,4.58052033,2025.4,2025.0,4.93806]
[1742386043634,4.58052033,2025.4,2025.1,4.93792]
[1742386043832,4.58052033,2025.4,2024.9,4.93838]
[1742386043833,4.58052033,2025.2,2024.9,4.93838]
[1742386044942,4.58052033,2025.0,2024.8,4.93873]
[1742386046213,4.58052033,2025.0,2024.8,9.87735]
[1742386046402,4.58052033,2025.0,2024.9,4.93851]
[1742386046807,4.58052033,2025.0,2024.8,9.87731]
[1742386047008,4.58052033,2025.0,2024.9,4.93851]
[1742386047808,0.83,2025.1,2025.0,4.93827]
[1742386048205,0.83,2025.1,2024.9,4.93844]
[1742386048443,0.83,2025.1,2024.8,9.87731]
[1742386048645,4.58052033,2025.0,2024.7,4.93899]
[1742386048822,4.58052033,2025.0,2024.7,4.93889]
[1742386049459,4.58052033,2025.0,2024.5,4.93947]
[1742386049756,4.58052033,2024.8,2024.6,4.93923]
[1742386050751,4.58052033,2024.8,2024.6,9.87831]
[1742386050951,4.58052033,2024.8,2024.5,4.93948]
[1742386051251,4.58052033,2024.8,2024.5,4.93935]
[1742386051436,4.58052033,2024.8,2024.5,9.87867]
[1742386051827,4.58052033,2024.8,2024.5,4.93932]
[1742386052035,0.7542,2024.7,2024.6,4.93924]
[1742386052757,4.58052033,2024.8,2024.6,4.93924]
[1742386053058,5.12157236,2025.0,2024.7,4.93888]
[1742386053270,1.11964808,2025.1,2024.8,4.93859]
[1742386053563,0.7542,2025.1,2024.9,4.93839]
[1742386055469,4.58052033,2025.0,2024.8,4.93873]
[1742386055637,0.7542,2025.1,2024.8,4.9386]
[1742386055831,0.7542,2025.1,2024.9,4.93841]
[1742386056038,4.93841,2024.9,2024.6,4.93915]
[1742386056362,4.58052033,2024.8,2024.5,9.8788]
[1742386056729,4.58052033,2024.8,2024.5,4.93932]
[1742386057130,0.7578,2024.7,2024.5,4.93932]
[1742386058156,0.7578,2024.7,2024.6,4.93924]
[1742386058332,0.8146,2024.9,2024.7,4.93886]
[1742386058941,3.98571533,2025.1,2024.8,4.93875]
[1742386059142,7.1995439,2025.0,2024.7,4.93886]
[1742386060436,7.1995439,2025.0,2024.8,4.93869]
[1742386060766,4.58052033,2025.0,2024.8,9.87728]
[1742386060973,0.7756,2025.1,2024.9,4.93851]
[1742386061276,0.7756,2025.1,2024.8,4.93874]
[1742386061662,0.7756,2025.1,2024.8,4.93863]
[1742386062067,0.7756,2025.1,2024.8,4.93868]
[1742386062376,0.7756,2025.1,2024.7,4.9388]
[1742386062539,4.58052033,2025.0,2024.6,4.93916]
[1742386062739,4.58052033,2025.0,2024.6,4.93912]
[1742386062979,4.58052033,2025.0,2024.7,4.93888]
[1742386066974,4.58052033,2025.0,2024.7,9.87776]
[1742386067269,4.13276842,2024.8,2024.7,4.93888]
[1742386069845,4.13276842,2024.8,2024.4,4.93973]
[1742386070047,4.13276842,2024.6,2024.5,4.93946]
[1742386073579,4.551511,2024.5,2024.2,9.88023]
[1742386073769,4.13276842,2024.3,2024.2,9.88023]
[1742386074278,4.13276842,2024.3,2024.1,4.94044]
[1742386074485,4.13276842,2024.1,2023.9,4.94071]
[1742386074696,4.62478526,2024.1,2023.9,9.88153]
[1742386074997,4.13276842,2024.1,2023.9,9.88153]
[1742386075486,4.13276842,2024.1,2024.0,4.94071]
[1742386075988,9.07334842,2024.1,2023.6,4.94158]
[1742386076186,4.13276842,2023.7,2023.6,4.94158]
[1742386076692,4.13276842,2023.9,2023.8,4.94101]
[1742386077156,4.13276842,2023.9,2023.7,9.88259]
[1742386077489,4.13276842,2023.9,2023.7,4.94126]